bitfinex-derivatives/quotes_ETHF0:USTF0_20260207
["timestamp","ask_amount","ask_price","bid_price","bid_amount"]
[1770495543421,0.00896651,2089.4,2088.7,0.00336229]
[1770495544030,0.00896651,2089.4,2088.7,0.5821844]
[1770495545330,0.00197898,2089.3,2088.5,0.58060596]
[1770495545626,0.00089071,2089.2,2087.9,0.58060596]
[1770495546330,2.86711425,2089.3,2087.9,0.58417806]
[1770495546626,2.86711425,2089.2,2087.9,0.58417806]
[1770495547032,0.01630323,2089.1,2087.9,0.58417806]
[1770495547330,0.01630323,2089.1,2087.9,0.88985086]
[1770495547527,0.01630323,2089.1,2088.0,0.5728997]
[1770495548325,0.01630323,2088.7,2087.9,0.0035721]
[1770495549434,2.88341748,2088.7,2087.8,0.5728997]
[1770495549629,0.00591538,2088.6,2087.3,0.54780608]
[1770495550328,0.56549272,2088.5,2087.3,0.54780608]
[1770495550536,0.56989715,2088.5,2087.3,0.55165885]
[1770495552033,0.55811428,2088.3,2087.3,0.55165885]
[1770495557739,0.55811428,2087.6,2085.9,0.52456438]
[1770495558639,0.55811428,2087.6,2085.9,0.52799995]
[1770495559038,0.55811428,2087.6,2086.0,0.52456438]
[1770495559435,0.55811428,2087.6,2086.2,0.23985]
[1770495559637,0.55811428,2088.2,2086.7,0.52456438]
[1770495560839,0.55811428,2088.4,2087.2,0.52456438]
[1770495561439,0.56251871,2088.5,2087.2,0.52456438]
[1770495561944,0.00440443,2088.5,2087.3,0.52456438]
[1770495562445,0.56251871,2088.5,2087.3,0.52456438]
[1770495564144,0.00440443,2088.5,2087.3,0.76429438]
[1770495564346,0.00440443,2088.5,2087.4,0.52456438]
[1770495564548,0.00440443,2088.5,2087.4,0.52806206]
[1770495564844,0.56251871,2088.5,2087.4,0.52806206]
[1770495567947,0.00440443,2088.5,2087.4,0.52806206]
[1770495568247,0.55811428,2088.9,2087.6,0.52456438]
[1770495569345,0.56257964,2088.9,2087.6,0.52456438]
[1770495571951,0.57257964,2088.9,2087.6,0.52456438]
[1770495572349,0.55811428,2088.8,2087.6,0.52456438]
[1770495577252,3.42522853,2088.8,2087.6,0.52456438]
[1770495577458,0.56770605,2088.7,2087.6,0.52456438]
[1770495577756,2.88157961,2088.9,2087.7,0.55928413]
[1770495577954,0.01446536,2088.9,2087.8,4.86132093]
[1770495578256,0.01446536,2088.9,2088.0,0.55928413]
[1770495578651,0.58217141,2088.9,2088.0,0.55928413]
[1770495579254,0.56770605,2088.8,2087.6,0.55928413]
[1770495579453,0.56770605,2088.6,2087.6,0.55928413]
[1770495584359,0.56770605,2088.5,2087.6,0.55928413]
[1770495587261,0.01446536,2088.9,2087.7,0.55928413]
[1770495587558,0.58217141,2088.9,2087.8,0.23967]
[1770495587757,0.58217141,2088.9,2087.9,0.55928413]
[1770495588657,0.56770605,2088.8,2087.9,0.55928413]
[1770495589456,3.4348203,2088.8,2087.9,0.55928413]
[1770495591757,0.56770605,2088.7,2087.9,0.55928413]
[1770495592857,0.56770605,2088.6,2087.9,0.55928413]
[1770495593159,0.56770605,2088.6,2088.0,0.55928413]
[1770495594357,0.56770605,2088.5,2088.0,0.55928413]
[1770495595761,0.56770605,2088.4,2088.0,0.55928413]
[1770495596355,2.86711425,2088.5,2088.0,0.55928413]
[1770495596356,3.4348203,2088.5,2088.0,0.55928413]
[1770495596557,3.4348203,2088.6,2088.0,0.55928413]
[1770495597664,2.86711425,2088.8,2088.1,0.55928413]
[1770495597961,2.88157961,2088.9,2088.2,0.55928413]
[1770495598158,0.01446536,2088.9,2088.3,3.41777962]
[1770495598358,0.01446536,2088.9,2088.4,0.55928413]
[1770495598755,0.01446536,2088.9,2088.4,3.41777962]
[1770495598958,0.56770605,2089.1,2088.5,0.55928413]
[1770495600063,0.57117852,2089.1,2088.5,0.55928413]
[1770495600562,0.00347247,2089.1,2088.5,0.55928413]
[1770495601360,0.56531867,2089.1,2088.2,2.85849549]
[1770495601560,0.5618462,2089.0,2088.2,0.55928413]
[1770495601760,0.5618462,2088.8,2088.2,0.55928413]
[1770495602158,2.86711425,2088.9,2088.2,0.55928413]
[1770495602360,0.00347247,2089.1,2088.5,0.55928413]
[1770495602659,0.00347247,2089.1,2088.4,2.85849549]
[1770495602660,43.5432309,2090.5,2089.4,0.55928413]
[1770495602865,42.97552485,2090.6,2089.6,0.55928413]
[1770495603060,0.56770605,2090.7,2089.8,2.85581256]
[1770495603363,0.56770605,2090.7,2089.7,0.55928413]
[1770495603557,0.57153287,2090.7,2089.7,0.56324462]
[1770495603959,0.57153287,2090.7,2089.7,0.00396049]
[1770495604264,0.57153287,2090.7,2089.7,0.56324462]
[1770495608366,0.57633233,2091.4,2089.8,0.5293427]
[1770495608564,0.57633233,2091.4,2090.0,0.5293427]
[1770495609360,0.58174315,2091.4,2090.0,0.5293427]
[1770495610162,0.58174315,2091.4,2090.1,0.5293427]
[1770495610460,0.58174315,2091.4,2090.0,0.23941]
[1770495610461,0.58174315,2091.4,2090.2,0.5293427]
[1770495610766,0.00541082,2091.4,2090.2,0.5293427]
[1770495611067,0.58174315,2091.4,2090.5,0.5293427]
[1770495611256,0.00541082,2091.4,2090.5,0.5293427]
[1770495611964,0.56065939,2091.4,2090.5,0.5293427]
[1770495615269,0.55524857,2092.0,2090.6,0.53196418]
[1770495615464,0.55524857,2092.0,2090.7,0.53196418]
[1770495616669,0.55958955,2092.0,2090.7,0.53196418]
[1770495618173,0.00434098,2092.0,2091.0,0.53196418]
[1770495618671,0.55524857,2093.0,2091.4,0.53196418]
[1770495619172,0.55524857,2092.9,2091.4,0.53196418]
[1770495619767,0.55923218,2092.9,2091.4,0.53649162]
[1770495619969,0.55524857,2092.8,2091.4,0.53649162]
[1770495622772,0.55524857,2092.5,2091.4,0.00452744]
[1770495622971,0.55524857,2092.5,2091.0,0.53196418]
[1770495623367,0.55524857,2092.3,2091.0,0.53196418]
[1770495623970,0.55524857,2092.3,2091.0,0.53694174]
[1770495624268,0.55524857,2092.3,2091.0,0.00497756]
[1770495624473,0.55524857,2092.3,2091.0,0.53694174]
[1770495624769,4.794,2092.7,2091.0,0.00497756]
[1770495624770,0.55524857,2092.1,2091.0,0.00497756]
[1770495626271,0.55524857,2092.0,2090.5,0.53196418]
[1770495626475,0.55524857,2091.6,2090.3,0.53196418]
[1770495627378,0.55524857,2091.6,2090.3,0.53534543]
[1770495631674,0.55524857,2091.6,2090.4,0.53196418]
[1770495632278,0.55524857,2091.6,2090.6,0.53196418]
[1770495638485,0.55524857,2091.6,2090.7,0.54872633]
[1770495642291,0.54230508,2091.8,2090.7,0.54872633]
[1770495642482,0.54230508,2091.9,2091.0,0.54872633]
[1770495643192,0.54230508,2091.9,2090.8,3.40453889]
[1770495643390,0.54230508,2091.9,2090.8,0.54872633]
[1770495644691,0.54230508,2092.3,2091.2,0.54872633]
[1770495644891,0.54230508,2092.3,2091.3,0.54872633]
[1770495652694,0.54230508,2091.8,2091.1,2.26348302]
[1770495653000,0.54230508,2091.4,2090.4,0.54872633]
[1770495653194,0.54645627,2091.4,2090.4,0.54872633]
[1770495653896,0.00415119,2091.4,2090.6,0.54872633]
[1770495654095,0.54230508,2091.9,2090.6,0.54872633]
[1770495654400,0.54230508,2092.1,2090.8,0.54872633]
[1770495655097,0.54791643,2092.1,2090.8,0.54872633]
[1770495656194,0.54230508,2091.9,2090.8,0.54872633]
[1770495659293,42.97552485,2092.0,2090.8,0.54872633]
[1770495659499,0.00561135,2092.1,2090.9,0.54872633]
[1770495659703,0.00561135,2092.1,2091.0,0.54872633]
[1770495659907,0.54791643,2092.1,2091.0,0.54872633]
[1770495660408,0.00561135,2092.1,2091.1,0.54872633]
[1770495660608,0.54791643,2092.1,2091.1,0.54872633]
[1770495661807,0.54230508,2091.8,2090.9,0.54872633]
[1770495663808,0.54230508,2091.9,2090.9,0.54872633]
[1770495665110,0.54230508,2091.8,2090.9,0.54872633]
[1770495665715,0.57915257,2091.9,2090.9,0.54872633]
[1770495665911,0.57915257,2092.0,2090.9,0.54872633]
[1770495666107,0.58476392,2092.1,2091.0,0.53400428]
[1770495666306,0.57915257,2092.0,2091.0,0.53400428]
[1770495666514,0.58476392,2092.1,2091.0,0.53400428]
[1770495666711,0.58476392,2092.1,2091.1,0.53400428]
[1770495668017,0.00561135,2092.1,2091.1,6.2456294]
[1770495668215,0.00561135,2092.1,2091.2,0.53400428]
[1770495668410,48.68984136,2092.5,2091.5,0.53400428]
[1770495668618,0.57915257,2092.8,2091.7,0.53400428]
[1770495669618,0.58404282,2092.8,2091.7,0.53400428]
[1770495671619,0.60122076,2093.2,2091.8,6.28271996]
[1770495671823,0.60122076,2093.2,2092.0,0.57109484]
[1770495672225,0.60122076,2093.3,2092.1,0.57109484]
[1770495672617,0.60122076,2093.3,2092.1,0.57469101]
[1770495672822,0.60474287,2093.3,2092.1,0.57469101]
[1770495675924,0.65415979,2093.3,2092.1,0.57469101]
[1770495677019,2.15241041,2093.3,2092.1,0.00359617]
[1770495677219,0.65063768,2093.2,2092.1,0.00359617]
[1770495677420,0.65063768,2093.2,2092.1,0.66563763]
[1770495678125,0.88968768,2093.2,2092.1,0.00359617]
[1770495678321,0.65063768,2093.1,2092.1,0.00359617]
[1770495678525,0.65063768,2093.1,2092.1,0.66563763]
[1770495678727,0.65063768,2093.1,2092.1,0.00359617]
[1770495679225,0.65063768,2092.8,2091.8,0.66204146]
[1770495679625,0.65063768,2092.8,2091.2,0.66204146]
[1770495679927,0.65063768,2092.7,2091.2,0.66204146]
[1770495680128,0.65063768,2092.7,2091.2,0.66563994]
[1770495680722,0.65063768,2092.6,2091.2,0.66563994]
[1770495681530,0.65063768,2092.5,2091.2,0.66563994]
[1770495682030,0.65063768,2092.2,2091.2,0.00359848]
[1770495682329,0.65063768,2092.2,2091.2,0.66563994]
[1770495682828,0.65063768,2092.2,2091.2,0.00359848]
[1770495686933,0.65063768,2092.2,2091.2,0.66563994]
[1770495691738,0.65063768,2092.2,2091.2,0.00359848]
[1770495692038,0.65063768,2092.1,2091.2,0.66563994]
[1770495693434,2.1488883,2092.1,2090.6,4.9222723]
[1770495693632,0.88980768,2092.2,2090.7,0.66204146]
[1770495693838,0.65063768,2092.1,2090.8,0.66204146]
[1770495694537,0.65063768,2092.1,2090.8,0.66706041]
[1770495696334,0.65063768,2092.1,2090.9,1.02128286]
[1770495696530,0.65063768,2092.1,2091.0,1.02128286]
[1770495699239,0.99769422,2092.5,2091.2,1.02128286]
[1770495699438,0.99769422,2092.5,2091.3,1.02128286]
[1770495700638,42.97552485,2092.8,2091.3,1.02128286]
[1770495700843,0.99769422,2092.7,2091.3,1.02128286]
[1770495701445,0.99769422,2092.7,2091.6,1.02128286]
[1770495704141,0.99769422,2092.7,2091.3,4.26023084]
[1770495704345,0.99769422,2092.4,2091.1,1.02128286]
[1770495705344,0.99769422,2092.4,2091.2,1.02128286]
[1770495705741,0.99769422,2092.3,2091.2,1.02128286]
[1770495708046,0.99769422,2092.1,2091.1,1.02128286]
[1770495709140,0.99769422,2092.0,2091.1,1.02128286]
[1770495714245,0.99769422,2092.0,2091.2,1.02128286]
[1770495720645,42.97552485,2092.1,2091.2,1.02128286]
[1770495720848,0.99769422,2092.0,2091.2,1.02128286]
[1770495721351,0.99769422,2092.2,2091.4,1.02128286]
[1770495722257,0.99769422,2092.4,2091.6,1.02128286]
[1770495722850,0.99769422,2092.4,2091.7,1.02128286]
[1770495723254,0.99769422,2092.5,2091.7,1.02128286]
[1770495724651,42.97552485,2092.9,2092.0,1.02128286]
[1770495724850,0.99769422,2092.9,2092.1,1.02128286]
[1770495725055,0.99769422,2093.1,2092.2,1.02128286]
[1770495725855,0.99769422,2093.1,2092.3,1.35667908]
[1770495726156,0.99769422,2093.1,2092.3,1.36153759]
[1770495730053,1.35404718,2093.3,2092.3,1.36153759]
[1770495731760,1.35404718,2093.3,2092.4,1.36818541]
[1770495732961,1.35404718,2093.3,2092.3,1.37304392]
[1770495733861,1.36404718,2093.3,2092.3,1.37304392]
[1770495734062,0.01352211,2093.3,2092.3,1.37304392]
[1770495734264,0.01352211,2093.3,2092.3,1.61219392]
[1770495734457,1.37975892,2093.3,2092.3,1.61219392]
[1770495734861,1.37975892,2093.3,2092.4,1.36818541]
[1770495739162,1.37975892,2093.3,2092.4,1.67374184]
[1770495745167,1.37975892,2093.3,2092.4,1.36818541]
[1770495746866,1.37975892,2093.3,2092.4,1.67257615]
[1770495748472,1.37975892,2093.3,2092.4,1.36818541]
[1770495748672,44.35528377,2093.3,2092.3,0.00485851]
[1770495748871,1.36623681,2093.2,2092.3,1.37304392]
[1770495751272,1.36623681,2093.2,2092.3,4.23082291]
[1770495751474,1.36623681,2093.2,2092.4,1.36818541]
[1770495753374,1.36623681,2093.2,2092.5,1.36818541]
[1770495754481,44.34176166,2093.0,2092.3,0.00485851]
[1770495754681,1.36623681,2092.9,2092.3,1.37304392]
[1770495754980,1.36623681,2092.9,2092.3,0.00485851]
[1770495755176,1.36623681,2092.9,2092.3,1.37304392]
[1770495755773,1.36623681,2092.9,2092.3,2.8626375]
[1770495755978,44.49335124,2093.1,2092.4,1.47989893]
[1770495756979,1.51782639,2093.0,2092.4,1.47989893]
[1770495759491,1.51782639,2093.0,2092.3,0.00485851]
[1770495759688,1.51782639,2093.0,2092.3,1.48475744]
[1770495760791,1.51782639,2093.0,2092.4,1.47989893]
[1770495760988,1.51782639,2093.1,2092.4,1.47989893]
[1770495762094,1.51782639,2093.1,2092.5,1.47989893]
[1770495762391,1.51782639,2093.2,2092.5,1.47989893]
[1770495762989,1.51782639,2093.1,2092.5,1.47989893]
[1770495764589,42.97552485,2093.2,2092.5,1.47989893]
[1770495764795,1.51782639,2093.2,2092.7,1.47989893]
[1770495765295,1.51782639,2093.2,2092.8,1.47989893]
[1770495765694,1.5313485,2093.3,2092.8,1.47989893]
[1770495766094,1.5313485,2093.3,2092.9,1.47989893]
[1770495766395,1.51782639,2093.5,2092.9,0.97989893]
[1770495767292,1.52288997,2093.5,2092.9,0.97989893]
[1770495768194,1.52288997,2093.5,2092.8,1.47989893]
[1770495768396,1.51782639,2093.4,2092.7,2.85777899]
[1770495768703,1.51782639,2093.4,2092.8,1.47989893]
[1770495771598,1.51782639,2093.4,2092.3,7.41406984]
[1770495771599,1.51782639,2093.4,2092.4,5.71162512]
[1770495771798,1.51782639,2093.1,2092.3,1.48475744]
[1770495774503,1.51782639,2093.0,2092.3,1.48475744]
[1770495774905,1.51782639,2092.9,2092.3,1.48475744]
[1770495775205,44.49335124,2093.1,2092.3,2.45442145]
[1770495775404,44.49335124,2093.1,2092.4,1.47989893]
[1770495775604,1.51782639,2093.0,2092.4,1.47989893]
[1770495777009,1.51782639,2092.7,2091.8,4.29287367]
[1770495777208,1.51782639,2092.7,2091.9,1.47989893]
[1770495777800,1.51782639,2092.7,2091.7,5.7727726]
[1770495778008,42.97552485,2092.8,2091.7,5.7727726]
[1770495778009,44.49335124,2092.5,2091.7,0.00440247]
[1770495778308,1.51782639,2092.4,2091.7,0.00440247]
[1770495778498,1.51782639,2092.4,2091.4,1.47989893]
[1770495778703,1.51782639,2092.3,2091.4,1.47989893]
[1770495779707,1.51782639,2092.3,2091.4,1.48557445]
[1770495782299,42.97552485,2092.5,2091.4,1.48557445]
[1770495782300,44.49335124,2092.5,2091.4,1.48557445]
[1770495782501,1.51782639,2092.4,2091.4,1.48557445]
[1770495782706,42.97552485,2092.5,2091.4,1.48557445]
[1770495782905,10.46362819,2093.2,2091.4,1.48557445]
[1770495782906,1.51782639,2092.9,2091.7,1.47989893]
[1770495783308,1.51782639,2092.8,2091.7,1.47989893]
[1770495788921,1.67950429,2093.4,2092.1,2.04630599]
[1770495789220,1.67950429,2093.4,2092.2,1.80712599]
[1770495789417,1.67950429,2093.3,2092.2,1.80712599]
[1770495797829,1.72533131,2093.2,2092.2,1.80712599]
[1770495799828,1.72533131,2093.0,2092.2,1.80712599]
[1770495802730,1.73039489,2093.5,2092.3,1.72548392]
[1770495803126,1.73039489,2093.5,2092.5,1.72548392]
[1770495811138,0.00506358,2093.5,2092.5,1.96461392]
[1770495811437,1.73039489,2093.5,2092.5,1.96461392]
[1770495813538,1.73039489,2093.5,2092.6,1.72548392]
[1770495817345,1.73039489,2093.5,2092.8,1.68997565]
[1770495821646,1.73039489,2093.5,2092.6,1.68997565]
[1770495822045,1.73039489,2093.5,2092.5,5.98284932]
[1770495822248,1.73039489,2093.5,2092.5,1.68997565]
[1770495824249,1.63584419,2093.4,2092.5,1.68997565]
[1770495824451,1.63584419,2093.3,2092.4,1.68997565]
[1770495824750,1.87488419,2093.3,2092.3,1.68997565]
[1770495824949,1.87488419,2093.3,2092.1,5.71162512]
[1770495824950,1.63584419,2093.1,2092.1,1.68997565]
[1770495831651,1.63584419,2093.1,2092.2,1.68997565]
[1770495832556,1.63584419,2093.0,2092.2,1.68997565]
[1770495832960,1.63584419,2092.9,2092.0,2.85800448]
[1770495833161,1.63584419,2092.9,2092.1,1.68997565]
[1770495834047,42.8953834,2093.2,2092.3,1.68997565]
[1770495834247,1.63584419,2093.1,2092.3,1.68997565]
[1770495839062,1.63584419,2093.2,2092.3,1.68997565]
[1770495839661,1.63584419,2093.2,2092.4,1.68997565]
[1770495843166,1.63584419,2093.1,2092.3,1.68997565]
[1770495846166,42.8953834,2093.4,2092.5,1.37071284]
[1770495846361,42.8953834,2093.4,2092.6,1.37071284]
[1770495846562,42.8953834,2093.6,2092.8,1.60980284]
[1770495846763,42.8953834,2094.0,2093.1,1.37071284]
[1770495846962,44.19651157,2094.1,2093.2,1.37071284]
[1770495847168,1.30112817,2094.1,2093.2,1.37071284]
[1770495847367,1.30112817,2093.7,2092.8,1.37071284]
[1770495847564,1.30112817,2093.6,2092.8,1.37071284]
[1770495847763,1.3056686,2093.6,2092.8,1.37692832]
[1770495856875,1.25845864,2093.2,2092.2,1.29333398]
[1770495857872,1.25845864,2093.2,2092.2,1.29850873]
[1770495862177,1.25845864,2093.1,2092.2,1.29850873]
[1770495876192,1.03023927,2093.1,2092.2,1.29850873]
[1770495877284,1.03023927,2093.1,2092.2,5.58306959]
[1770495877592,3.88775314,2093.4,2092.4,1.11232013]
[1770495877793,1.03023927,2093.3,2092.4,1.11232013]
[1770495878689,2.85751387,2093.4,2092.4,1.11232013]
[1770495878892,1.03023927,2093.3,2092.5,1.11232013]
[1770495881397,1.03023927,2093.3,2092.6,1.11232013]
[1770495884199,1.03023927,2093.3,2092.7,1.11232013]
[1770495885696,1.03023927,2093.3,2092.6,5.39688099]
[1770495885902,1.03023927,2093.2,2092.4,5.39688099]
[1770495886101,1.03023927,2093.2,2092.5,1.11232013]
[1770495886603,3.88775314,2093.2,2092.5,1.11232013]
[1770495886803,1.03023927,2093.1,2092.5,1.11232013]
[1770495887001,1.03023927,2093.2,2092.5,1.11232013]
[1770495888997,1.03023927,2093.2,2092.6,1.11232013]
[1770495892508,2.85751387,2093.5,2092.8,1.11232013]
[1770495892999,3.88775314,2093.5,2092.8,1.11232013]
[1770495893806,1.03023927,2093.5,2092.8,1.11232013]
[1770495895109,1.03023927,2093.4,2092.7,4.28456086]
[1770495895502,1.03023927,2093.4,2092.6,5.39688099]
[1770495895805,1.03023927,2093.1,2092.6,1.11232013]
[1770495896408,1.03023927,2093.1,2092.5,1.11232013]
[1770495896902,3.88775314,2093.2,2092.5,1.11232013]
[1770495897109,1.03023927,2093.2,2092.6,1.11232013]
[1770495897705,2.85751387,2093.5,2092.8,1.11232013]
[1770495897901,3.88775314,2093.5,2092.8,1.11232013]
[1770495898302,1.03023927,2093.5,2092.8,1.11232013]
[1770495900008,1.03023927,2093.5,2093.0,1.11232013]
[1770495900307,2.8620543,2093.6,2093.0,1.11232013]
[1770495900508,0.00454043,2093.6,2093.0,1.11232013]
[1770495900704,3.35927462,2093.7,2093.2,1.11232013]
[1770495900910,3.89149901,2093.8,2093.2,1.11232013]
[1770495901414,2.86125974,2093.9,2093.2,1.11232013]
[1770495901818,3.89696502,2093.9,2093.2,1.11232013]
[1770495902018,45.75664314,2094.3,2093.8,1.11232013]
[1770495902318,1.03023927,2094.3,2093.5,1.11232013]
[1770495903109,1.03522156,2094.3,2093.5,1.11570801]
[1770495903712,1.03023927,2094.1,2093.5,0.00338788]
[1770495903912,1.03023927,2094.1,2093.5,1.11570801]
[1770495905417,0.89184495,2094.2,2093.6,0.94885024]
[1770495913726,0.89184495,2094.2,2093.5,0.00338788]
[1770495914028,0.88933617,2094.1,2093.5,0.9275433]
[1770495914420,0.9692128,2094.0,2093.2,0.92415542]
[1770495914623,0.88933617,2094.0,2093.2,0.92415542]
[1770495914822,0.88933617,2094.2,2093.2,0.92415542]
[1770495915519,0.88933617,2094.2,2093.2,0.92812742]
[1770495915720,0.88933617,2094.2,2093.4,0.92415542]
[1770495921728,2.85014004,2094.6,2094.0,0.92415542]
[1770495921933,0.88933617,2094.7,2094.0,0.92415542]
[1770495922922,0.89371051,2094.7,2094.0,0.92415542]
[1770495925330,0.89371051,2094.7,2094.1,0.92415542]
[1770495926728,0.89371051,2094.7,2093.9,0.92415542]
[1770495926934,0.88933617,2094.5,2093.8,0.92415542]
[1770495928732,45.74989778,2094.7,2093.8,0.92415542]
[1770495928733,0.88933617,2094.3,2093.8,0.92415542]
[1770495930930,2.85451438,2094.7,2093.8,0.92415542]
[1770495931234,0.89371051,2094.7,2094.0,0.92415542]
[1770495933738,0.00437434,2094.7,2094.0,0.92415542]
[1770495933935,0.00437434,2094.7,2094.2,0.92415542]
[1770495937746,0.00437434,2094.7,2094.4,0.79274121]
[1770495939144,2.85014004,2095.3,2094.3,0.9692128]
[1770495939145,0.84461992,2095.3,2094.6,0.79274121]
[1770495940144,0.00455396,2095.3,2094.6,0.79274121]
[1770495940335,0.84917388,2095.3,2094.6,0.79274121]
[1770495947453,0.13996241,2094.8,2093.8,0.79274121]
[1770495947649,0.13996241,2094.8,2094.2,0.79274121]
[1770495948151,0.13996241,2094.8,2094.2,2.82156558]
[1770495951253,0.12830245,2094.7,2094.2,2.82156558]
[1770495951656,0.12830245,2094.7,2094.2,0.79274121]
[1770495951850,0.12830245,2094.7,2093.8,0.79274121]
[1770495952051,0.12830245,2094.7,2093.9,0.79274121]
[1770495952958,0.12830245,2094.7,2094.0,2.02882437]
[1770495953151,0.12331023,2094.6,2094.0,2.02882437]
[1770495953648,0.11706237,2094.5,2093.8,0.79274121]
[1770495953847,0.11706237,2094.5,2093.9,2.02882437]
[1770495954052,0.11706237,2094.5,2093.9,2.82156558]
[1770495954447,0.12217398,2094.2,2093.2,0.79671321]
[1770495954656,0.12217398,2094.1,2093.4,0.79274121]
[1770495955657,2.99540126,2094.3,2093.6,0.79274121]
[1770495955954,0.14526122,2094.2,2093.6,0.79274121]
[1770495956257,0.14526122,2094.2,2093.7,2.82156558]
[1770495956458,0.14526122,2094.2,2093.5,0.79274121]
[1770495958650,0.14526122,2094.2,2093.6,0.79274121]
[1770495962662,2.96109263,2094.4,2093.6,0.79274121]
[1770495962862,2.84890294,2094.4,2093.7,0.79274121]
[1770495963063,0.11218969,2094.3,2093.7,0.79274121]
[1770495964167,2.9559635,2094.8,2093.9,0.79274121]
[1770495964368,0.10264246,2094.7,2093.9,0.79274121]
[1770495964665,0.10264246,2094.7,2094.1,0.79274121]
[1770495964964,0.10264246,2094.8,2094.1,0.29274121]
[1770495965160,0.10264246,2094.8,2094.3,0.79274121]
[1770495965559,0.10264246,2094.8,2094.3,0.29324121]
[1770495966162,2.94888679,2094.8,2093.5,0.71630452]
[1770495966360,0.71589948,2094.7,2093.7,0.71630452]
[1770495967064,0.71589948,2094.7,2093.9,0.71630452]
[1770495967459,0.71589948,2094.7,2094.1,0.71630452]
[1770495967961,0.71589948,2094.7,2094.3,0.71630452]
[1770495968662,0.71589948,2094.7,2094.3,2.74512889]
[1770495968863,0.71589948,2094.7,2094.3,0.71630452]
[1770495969362,0.71589948,2094.7,2094.3,2.74512889]
[1770495970266,0.71589948,2094.7,2094.3,2.02882437]
[1770495970667,0.71589948,2094.7,2093.1,8.55363754]
[1770495970668,0.71589948,2094.6,2093.7,0.71630452]
[1770495970868,0.71589948,2094.6,2093.8,0.71630452]
[1770495971365,0.71589948,2094.6,2093.9,2.02882437]
[1770495972268,3.56214381,2094.6,2093.9,2.02882437]
[1770495972468,0.75837142,2094.5,2093.9,2.02882437]
[1770495974167,3.60461575,2094.5,2093.9,2.02882437]
[1770495974365,0.75837142,2094.4,2093.9,2.02882437]
[1770495976274,0.75837142,2094.3,2093.9,2.02882437]
[1770495977172,0.75837142,2094.3,2093.9,2.81881157]
[1770495977376,3.60461575,2094.4,2094.0,0.7899872]
[1770495977574,0.75837142,2094.3,2094.0,0.7899872]
[1770495978867,0.75837142,2094.3,2093.9,2.02882437]
[1770495979080,0.75837142,2094.3,2093.9,2.81881157]
[1770495981182,3.60461575,2094.3,2093.9,2.81881157]
[1770495981482,0.75837142,2094.2,2093.9,2.81881157]
[1770495981683,2.84624433,2094.3,2094.0,0.7899872]
[1770495981878,0.91687813,2094.2,2093.9,2.02882437]
[1770495982382,0.91687813,2094.2,2093.9,2.0521313]
[1770495982584,0.91687813,2094.2,2093.9,2.02882437]
[1770495984187,0.91687813,2094.2,2093.8,0.02330693]
[1770495985188,3.75849703,2094.3,2093.8,0.02330693]
[1770495985382,2.84624433,2094.3,2093.8,0.02330693]
[1770495985689,3.75849703,2094.3,2093.8,0.02330693]
[1770495986785,2.84624433,2094.3,2093.8,0.02330693]
[1770495986989,3.75746853,2094.3,2093.8,0.02330693]
[1770495987288,0.91153396,2094.2,2093.8,0.02330693]
[1770495988695,3.75767596,2094.3,2093.8,0.02330693]
[1770495989086,0.91143163,2094.2,2093.8,0.02330693]
[1770495989291,0.91143163,2094.2,2093.5,0.32444229]
[1770495991494,0.92286018,2093.9,2093.2,0.003972]
[1770495991694,0.92286018,2093.8,2093.2,0.36127391]
[1770495991897,0.0035105,2093.8,2093.3,0.35730191]
[1770495992895,0.92627448,2093.8,2093.3,0.35730191]
[1770495993792,0.0035105,2093.8,2093.3,0.35730191]
[1770495993992,45.74162773,2094.1,2093.3,0.35730191]
[1770495994193,3.77928122,2094.1,2093.3,0.35730191]
[1770495994794,2.84624433,2094.1,2093.3,0.35730191]
[1770495995196,2.85172103,2094.1,2093.3,0.35730191]
[1770495995396,2.85172103,2094.1,2093.4,0.39747838]
[1770495997502,0.0054767,2094.1,2093.5,0.44739958]
[1770495997801,1.13429325,2094.2,2093.5,0.44739958]
[1770495998102,2.84624433,2094.3,2093.5,0.44739958]
[1770495998297,2.85624433,2094.5,2093.7,0.46113275]
[1770495998501,3.99053758,2094.5,2093.7,0.46113275]
[1770495998702,1.13429325,2094.4,2093.7,0.46113275]
[1770495998894,2.86168013,2094.5,2093.7,0.46113275]
[1770495999401,2.84624433,2094.7,2094.0,0.47248739]
[1770495999801,2.6195263,2094.7,2094.0,0.47248739]
[1770496000002,1.16885686,2094.7,2094.0,0.47248739]
[1770496000200,1.16885686,2094.7,2094.1,0.01336313]
[1770496000398,1.17374914,2094.7,2094.1,0.01336313]
[1770496001200,1.16053029,2094.7,2094.1,0.01336313]
[1770496001400,1.16053029,2094.7,2093.8,4.28456086]
[1770496001595,1.15563801,2094.6,2093.7,0.15157725]
[1770496001905,1.15563801,2094.5,2093.7,0.15157725]
[1770496003800,1.15563801,2094.5,2093.8,0.1929083]
[1770496005307,1.15563801,2094.5,2093.6,4.46597984]
[1770496005703,1.15563801,2094.5,2093.6,0.18141898]
[1770496005904,1.15563801,2094.5,2093.7,0.18141898]
[1770496007411,1.15563801,2094.5,2093.7,3.04101838]
[1770496007713,1.15563801,2094.5,2093.8,0.14532765]
[1770496008808,1.15563801,2094.5,2093.7,7.14416026]
[1770496008809,1.15563801,2094.5,2093.7,2.8595994]
[1770496009009,1.15563801,2094.5,2093.6,2.8595994]
[1770496009409,1.15563801,2094.5,2093.6,2.97292266]
[1770496013008,1.15563801,2094.5,2093.7,0.06267037]
[1770496013209,1.15563801,2094.5,2093.7,2.92217254]
[1770496013514,1.15563801,2094.5,2093.8,0.04437786]
[1770496013714,1.15563801,2094.5,2093.9,0.04437786]
[1770496014415,1.15653181,2094.7,2093.9,0.04437786]
[1770496014810,0.00489228,2094.7,2093.9,0.04437786]
[1770496015013,1.15653181,2094.7,2094.1,0.02784727]
[1770496017314,0.00489228,2094.7,2094.1,0.02784727]
[1770496017517,0.00489228,2094.7,2094.2,2.85950217]
[1770496017910,1.17151171,2095.2,2094.3,2.85950217]
[1770496018218,1.17151171,2095.2,2094.4,2.85950217]
[1770496019017,1.1768238,2095.2,2094.4,2.85950217]
[1770496019819,0.00531209,2095.2,2094.5,2.85950217]
[1770496020711,0.00531209,2095.2,2094.6,2.85950217]
[1770496021115,1.16868858,2095.4,2094.7,2.85950217]
[1770496021315,1.16868858,2095.4,2094.6,4.28456086]
[1770496021316,1.16868858,2095.4,2094.6,2.85950217]
[1770496022013,0.00457921,2095.4,2094.7,2.85950217]
[1770496024423,0.00457921,2095.4,2094.8,3.09837217]
[1770496024622,1.24485491,2095.7,2094.9,2.85950217]
[1770496025323,1.24485491,2095.7,2094.8,3.09837217]
[1770496025528,1.25025534,2095.7,2094.8,3.09837217]
[1770496025816,0.08466165,2095.7,2095.0,3.09834217]
[1770496026020,1.16830565,2096.2,2095.2,2.85950217]
[1770496026215,1.16830565,2096.2,2095.1,2.85950217]
[1770496026921,1.17338204,2096.2,2095.1,2.85950217]
[1770496028223,1.17338204,2096.2,2095.0,7.38290303]
[1770496028925,1.17338204,2096.2,2095.1,2.85950217]
[1770496029221,1.17338204,2096.2,2095.0,3.09834217]
[1770496032324,1.17338204,2096.2,2095.0,0.23884]
[1770496036830,1.17338204,2096.2,2095.0,3.09834217]
[1770496037524,27.24153618,2099.1,2096.1,1.49381448]